[Event "FISU WUMSCC Men 2024"]
[Site "Entebbe"]
[Date "2024.06.28"]
[Round "7.1"]
[White "Mladek, Richard"]
[Black "Szpar, Milosz"]
[Result "0-1"]
[ECO "D10"]
[WhiteElo "2385"]
[BlackElo "2497"]
[Annotator "TA"]
[PlyCount "116"]
[EventDate "2024.06.24"]
[EventType "swiss"]
[EventCountry "UGA"]
[SourceTitle "playchess.com"]
[Source "ChessBase"]
[SourceQuality "1"]
[TimeControl "5400+30"]

{[%evp 45,116,-140,-144,-160,-149,-224,-154,-175,-154,-151,-133,-163,-162,-308,-282,-323,-281,-293,-145,-126,-134,-112,-131,-116,-122,-209,-203,-197,-177,-197,-197,-170,-63,-112,-95,-334,-390,-399,-319,-270,-270,-426,-262,-893,-857,-1095,-996,-996,-691,-735,-668,-2709,-1760,-29958,-902,-6456,-9439,-29967,-29968,-29966,-3664,-5097,-2920,-10020,-8229,-29962,-5716,-29983,-29974,-29970,-29975,-6935,-5622]} 1. d4 {[%emt 0:00:02]} d5 {[%emt 0:04:37]} 2. c4 {[%emt 0:00:01]} c6 {[%emt 0:00:16]} 3. Nc3 {[%emt 0:00:46]} Nf6 {[%emt 0:00:05]} 4. e3 {[%emt 0:00:07]} Bf5 {[%emt 0:00:03]} 5. cxd5 {[%emt 0:00:52]} cxd5 {[%emt 0:00:05]} 6. Qb3 {[%emt 0:00:11]} Nc6 {[%emt 0:00:03]} 7. Qxb7 {[%emt 0:00:09]} Bd7 {[%emt 0:00:03]} 8. Qb3 {[%emt 0:00:21]} Rb8 {[%emt 0:00:04]} 9. Qd1 {[%emt 0:00:07]} e5 {[%emt 0:00:03]} 10. dxe5 {[%emt 0:00:25]} Nxe5 {[%emt 0:00:05]} 11. Bd3 {[%emt 0:06:11]} Bd6 {[%emt 0:28:07]} 12. Nge2 {[%emt 0:02:50]} O-O {[%emt 0:08:56]} 13. Nd4 {[%emt 0:03:05]} Qc7 {[%emt 0:04:39]} 14. Qc2 {[%emt 0:13:10]} Nxd3+ {[%emt 0:12:28]} 15. Qxd3 {[%emt 0:00:34]} Rfc8 {[%emt 0:00:45]} 16. Rb1 {[%emt 0:08:16]} Bxh2 {[%emt 0:08:24]} 17. Bd2 {[%emt 0:16:51]} Be5 {[%emt 0:02:51]} 18. Rc1 {[%emt 0:11:01]} Qc4 {[%emt 0:02:57]} 19. Qxc4 {[%emt 0:05:32]} dxc4 {[%emt 0:00:28]} 20. Nf3 {[%emt 0:00:29]} Bd6 {[%emt 0:00:29]} 21. Nd1 {[%emt 0:01:00]} Ne4 {[%emt 0:01:05]} 22. Ke2 {[%emt 0:02:36]} Bf5 {[%emt 0:04:17]} 23. Rh4 {[%emt 0:05:25]} g5 {[%emt 0:01:29]} 24. Rh6 {[%emt 0:02:40]} Bg6 {[%emt 0:02:12]} 25. g4 {[%emt 0:03:05]} (25. Ba5 $17) 25... Nxd2 26. Nxd2 {[%emt 0:01:33]} Bd3+ {[%emt 0:05:33]} 27. Kf3 {[%emt 0:00:30]} Bf8 {[%emt 0:01:47]} 28. Rh5 {[%emt 0:01:04]} h6 {[%emt 0:00:49]} 29. b3 {[%emt 0:07:25]} (29. Ne4 $142) 29... cxb3 $19 {[%emt 0:00:35]} 30. Nxb3 {[%emt 0:00:12]} Bc2 {[%emt 0:05:10]} 31. Kg3 {[%emt 0:04:28]} Bxb3 {[%emt 0:04:09]} (31... Ba3 32. Ra1 $19) (31... Rc4 $19 {has better winning chances.} 32. Ra1 Bd6+ 33. Kf3 Be4+ 34. Ke2 Kg7) 32. Rxc8 $17 {[%emt 0:00:02]} Rxc8 {[%emt 0:00:07]} 33. axb3 {[%emt 0:00:03]} Rb8 {[%emt 0:00:35]} 34. f4 {[%emt 0:00:33] [#]} f6 $1 {[%emt 0:00:42]} 35. Nc3 {[%emt 0:01:49]} (35. fxg5 $17 fxg5 (35... Rxb3 36. gxf6 Kf7 37. Kg2 $11) 36. Kf3) 35... Rxb3 $19 {[%emt 0:00:28]} 36. Nd5 {[%emt 0:00:01]} Kf7 {[%emt 0:02:21]} 37. Kf3 {[%emt 0:00:03]} a5 {[%emt 0:00:47]} 38. Rh2 {[%emt 0:00:02]} gxf4 {[%emt 0:00:16]} (38... a4 $19 {aiming for ...gxf4.} 39. Rc2 a3 40. Rc7+ Ke6) 39. Nxf4 {[%emt 0:01:13]} (39. Rc2 $15) 39... a4 $17 {[%emt 0:00:21]} 40. Ra2 $2 {[%emt 0:00:55]} (40. Rh5 $17) 40... a3 $19 {[%emt 0:00:09]} 41. Ke4 {[%emt 0:00:32]} Bc5 {[%emt 0:00:41]} 42. Nd3 {[%emt 0:00:25]} Bb6 {[%emt 0:00:07]} 43. Rc2 {[%emt 0:00:12]} (43. Rf2 $142) 43... Ke7 {[%emt 0:01:05]} 44. Nf4 $2 {[%emt 0:01:25]} (44. Rd2) 44... Rxe3+ $19 {[%emt 0:00:14]} 45. Kf5 {[%emt 0:00:03]} Re5+ {[%emt 0:00:54]} 46. Kg6 {[%emt 0:00:03]} Be3 {[%emt 0:00:22]} 47. Ng2 {[%emt 0:00:39]} Bd4 {[%emt 0:00:35]} 48. Ra2 {[%emt 0:00:35]} Rg5+ {[%emt 0:00:46]} 49. Kxh6 {[%emt 0:00:05]} Rxg4 {[%emt 0:00:13]} (49... Bb2 $142 50. Nh4 Rxg4 (50... Ke6 $2 51. Nf3 $19) 51. Nf5+ Ke6 52. Ne3 Bc1 53. Kh5 Rg5+ (53... Bxe3 54. Kxg4 Bc1 55. Re2+ Kd6 56. Kf5 $11) 54. Kh4 Bxe3 55. Rxa3 Bf2+ 56. Kh3 Rg3+ 57. Rxg3 Bxg3 58. Kxg3 Ke5 59. Kf3 Kf5 60. Kg3 Ke4 61. Kf2 Kf4 62. Kg2 Ke3 63. Kg3 f5 64. Kg2 f4 65. Kf1 Kf3 66. Ke1 Kg2 67. Ke2 f3+ 68. Ke3 f2 69. Ke4 f1=Q (69... f1=B 70. Kf5 $11) 70. Ke5 Qb5+ 71. Ke6 Kg3 72. Kf7 Qc6 73. Kg8 Kf4 74. Kg7 Kg5 75. Kg8 Kf6 76. Kh8 Kg6 77. Kg8 Qe8#) 50. Ne1 {[%emt 0:00:34]} Rg3 {[%emt 0:00:21]} 51. Kh5 {[%emt 0:00:20]} f5 {[%emt 0:00:26]} 52. Kh4 {[%emt 0:00:11]} f4 {[%emt 0:00:30]} 53. Ng2 {[%emt 0:00:07]} Bf6+ {[%emt 0:00:16]} 54. Kh5 {[%emt 0:00:04]} Be5 {[%emt 0:00:32]} 55. Kh4 {[%emt 0:01:25]} Ke6 {[%emt 0:01:02]} (55... Kf6 $142 56. Rd2 Kf5 (56... Kg6 {gets mated.} 57. Nxf4+ Bxf4 58. Rd7 a2 59. Ra7 Rg2 60. Kh3 Rh2+ 61. Kg4 Be5 62. Ra6+ Kf7 63. Kf3 a1=Q 64. Rxa1 Bxa1 65. Kf4 Ke6 66. Ke4 Be5 67. Ke3 Kd5 68. Kd3 Rh3+ 69. Kd2 Ke4 70. Ke2 Rh2+ 71. Kd1 Ra2 72. Ke1 Kf3 73. Kd1 Bf4 74. Ke1 Ra1#) 57. Kh5 Bb2 58. Nh4+ Ke4 59. Ng6 a2 60. Re2+ Kf3 61. Re1 Kf2 (61... a1=B 62. Rf1+ Ke2 63. Rxf4 $17) (61... a1=Q {is a self mate.} 62. Nh4+ Kf2 63. Rxa1 Bxa1 64. Nf5 f3 65. Kh6 Rg1 66. Ne7 Ke2 67. Ng6 f2 68. Nf4+ Kf3 69. Nh3 f1=Q 70. Ng5+ Kg4 71. Kh7 Kxg5 72. Kg8 Kh6#) 62. Rd1 f3 (62... a1=B 63. Nxf4 Be5 64. Ne6 $17) 63. Rd2+ Ke1 64. Rd7 a1=Q (64... a1=B $2 65. Re7+ Kd2 66. Rd7+ Bd4 67. Rd5 $19) 65. Kh4 Rxg6 66. Kh5 Rg2 67. Re7+ Kf2 68. Re4 Qa5+ 69. Re5 Qxe5+ 70. Kh6 Qh8#) 56. Kh5 {[%emt 0:01:03]} Kf5 {[%emt 0:00:31]} 57. Nh4+ {[%emt 0:00:02]} Ke4 {[%emt 0:00:15]} 58. Re2+ {[%emt 0:00:05]} Re3 {[%emt 0:00:12]} 0-1

[Event "FISU WUMSCC Men 2024"]
[Site "Entebbe"]
[Date "2024.06.28"]
[Round "7.2"]
[White "Alrehaili, Ahmed Abdullah S"]
[Black "Defromont, Benjamin"]
[Result "0-1"]
[ECO "A05"]
[WhiteElo "2134"]
[BlackElo "2380"]
[Annotator "RC"]
[PlyCount "76"]
[EventDate "2024.06.24"]
[EventType "swiss"]
[EventCountry "UGA"]
[SourceTitle "playchess.com"]
[Source "ChessBase"]
[SourceQuality "1"]
[TimeControl "5400+30"]

1. e4 {[%emt 0:01:45]} e6 {[%emt 0:01:45]} 2. d3 {[%emt 0:00:13]} c5 {[%emt 0:00:09]} 3. Nf3 {[%emt 0:00:31]} b6 {[%emt 0:01:25]} 4. g3 {[%emt 0:00:47]} Bb7 {[%emt 0:00:05]} 5. Bg2 {[%emt 0:00:13]} d6 {[%emt 0:00:12]} 6. O-O {[%emt 0:00:57]} Nf6 {[%emt 0:00:46]} 7. Nbd2 {[%emt 0:03:42]} Be7 {[%emt 0:00:07]} 8. Re1 {[%emt 0:01:46]} O-O {[%emt 0:05:22]} 9. c3 {[%emt 0:01:54]} Nc6 {[%emt 0:00:10]} 10. a3 {[%emt 0:03:04]} b5 {[%emt 0:00:04]} 11. d4 {[%emt 0:02:47]} Qb6 {[%emt 0:00:04]} 12. e5 {[%emt 0:01:37]} dxe5 {[%emt 0:00:13]} 13. dxe5 {[%emt 0:00:29]} Nd7 {[%emt 0:00:03]} 14. b3 {[%emt 0:09:47]} Rfd8 {[%emt 0:03:33]} 15. Qe2 {[%emt 0:00:57]} a5 {[%emt 0:01:06]} 16. h4 {[%emt 0:07:04]} c4 {[%emt 0:13:59]} 17. bxc4 {[%emt 0:12:34]} b4 {[%emt 0:00:03]} 18. Rb1 {[%emt 0:03:24]} Nc5 {[%emt 0:03:01]} 19. Ne4 {[%emt 0:07:25]} Nd3 {[%emt 0:17:07]} 20. Be3 {[%emt 0:02:03]} Qa6 {[%emt 0:04:56]} 21. Red1 {[%emt 0:06:47]} Qxc4 {[%emt 0:04:57]} 22. Nfd2 {[%emt 0:09:17]} Qa2 {[%emt 0:01:43]} 23. cxb4 {[%emt 0:05:52]} axb4 {[%emt 0:02:18]} 24. axb4 {[%emt 0:06:22]} Bxb4 {[%emt 0:04:23]} 25. Nd6 {[%emt 0:06:20]} Ba6 {[%emt 0:05:39]} 26. Bxc6 {[%emt 0:02:23]} Nxe5 {[%emt 0:00:16]} 27. Qh5 {[%emt 0:01:05]} Nxc6 {[%emt 0:04:22]} 28. Qxf7+ {[%emt 0:00:09]} Kh8 {[%emt 0:00:03]} 29. Nf5 {[%emt 0:00:46]} Bf8 {[%emt 0:01:48]} 30. Ne4 {[%emt 0:02:48]} Rxd1+ {[%emt 0:01:20]} 31. Rxd1 {[%emt 0:00:01]} Ne5 {[%emt 0:00:17]} 32. Qc7 {[%emt 0:01:08]} exf5 {[%emt 0:00:15]} 33. Ng5 {[%emt 0:00:32]} Qe2 {[%emt 0:00:55]} 34. Qxe5 {[%emt 0:00:30]} Qxd1+ {[%emt 0:00:07]} 35. Kh2 {[%emt 0:00:01]} Bb7 {[%emt 0:01:23]} 36. Nf7+ {[%emt 0:00:12]} Kg8 {[%emt 0:00:04]} 37. Nh6+ {[%emt 0:00:08]} gxh6 {[%emt 0:00:04]} 38. Qe6+ {[%emt 0:00:08]} Kh8 {[%emt 0:00:07]} 0-1

[Event "FISU WUMSCC Men 2024"]
[Site "Entebbe"]
[Date "2024.06.28"]
[Round "7.3"]
[White "Gatineau, Yovann"]
[Black "Nyola Wasswa Mark"]
[Result "1-0"]
[ECO "D61"]
[WhiteElo "2414"]
[BlackElo "2067"]
[Annotator "RC"]
[PlyCount "107"]
[EventDate "2024.06.24"]
[EventType "swiss"]
[EventCountry "UGA"]
[SourceTitle "playchess.com"]
[Source "ChessBase"]
[SourceQuality "1"]
[TimeControl "5400+30"]

1. d4 {[%emt 0:02:29]} Nf6 {[%emt 0:00:27]} 2. c4 {[%emt 0:00:17]} e6 {[%emt 0:00:15]} 3. Nf3 {[%emt 0:00:07]} d5 {[%emt 0:00:45]} 4. Nc3 {[%emt 0:00:06]} Be7 {[%emt 0:00:58]} 5. Bg5 {[%emt 0:01:02]} Nbd7 {[%emt 0:00:27]} 6. e3 {[%emt 0:00:14]} c6 {[%emt 0:01:14]} 7. Qc2 {[%emt 0:00:45]} h6 {[%emt 0:02:00]} 8. Bh4 {[%emt 0:00:28]} O-O {[%emt 0:01:03]} 9. a3 {[%emt 0:01:46]} a5 {[%emt 0:01:11]} 10. Rd1 {[%emt 0:01:04]} Re8 {[%emt 0:00:55]} 11. Bd3 {[%emt 0:00:37]} dxc4 {[%emt 0:00:24]} 12. Bxc4 {[%emt 0:00:06]} Nd5 {[%emt 0:00:11]} 13. Bg3 {[%emt 0:01:58]} b5 {[%emt 0:02:12]} 14. Nxd5 {[%emt 0:02:39]} exd5 {[%emt 0:03:52]} 15. Bxd5 {[%emt 0:01:31]} cxd5 {[%emt 0:04:50]} 16. Bc7 {[%emt 0:00:06]} Bb4+ {[%emt 0:00:09]} 17. axb4 {[%emt 0:00:07]} Qf6 {[%emt 0:00:09]} 18. Bxa5 {[%emt 0:03:39]} Nf8 {[%emt 0:01:26]} 19. Ne5 {[%emt 0:06:29]} Qg5 {[%emt 0:06:53]} 20. O-O {[%emt 0:01:19]} Bf5 {[%emt 0:09:57]} 21. Qc7 {[%emt 0:05:21]} Re7 {[%emt 0:12:18]} 22. Qc6 {[%emt 0:00:39]} Rae8 {[%emt 0:16:26]} 23. Qxd5 {[%emt 0:02:28]} Be6 {[%emt 0:00:41]} 24. Qf3 {[%emt 0:01:53]} f6 {[%emt 0:01:06]} 25. Nc6 {[%emt 0:01:51]} Rd7 {[%emt 0:00:59]} 26. e4 {[%emt 0:19:13]} f5 {[%emt 0:02:19]} 27. Ne5 {[%emt 0:01:58]} fxe4 {[%emt 0:00:38]} 28. Qe3 {[%emt 0:00:43]} Qxe3 {[%emt 0:04:08]} 29. fxe3 {[%emt 0:00:33]} Rd5 {[%emt 0:01:37]} 30. Rc1 {[%emt 0:02:25]} Nd7 {[%emt 0:00:56]} 31. Bc7 {[%emt 0:03:40]} Nxe5 {[%emt 0:04:25]} 32. Bxe5 {[%emt 0:00:07]} Rc8 {[%emt 0:02:30]} 33. Rc5 {[%emt 0:00:31]} Ra8 {[%emt 0:04:07]} 34. Rc6 {[%emt 0:00:35]} Re8 {[%emt 0:01:01]} 35. h3 {[%emt 0:08:03]} Rd7 {[%emt 0:00:41]} 36. Ra1 {[%emt 0:02:34]} Rf7 {[%emt 0:03:14]} 37. Kh2 {[%emt 0:06:21]} Bc4 {[%emt 0:00:57]} 38. Kg3 {[%emt 0:01:23]} Kh7 {[%emt 0:02:08]} 39. Raa6 {[%emt 0:00:55]} Rd8 {[%emt 0:02:19]} 40. Rg6 {[%emt 0:01:30]} Rdd7 {[%emt 0:00:30]} 41. h4 {[%emt 0:08:01]} Ra7 {[%emt 0:00:52]} 42. Rgd6 {[%emt 0:02:14]} Rxa6 {[%emt 0:01:12]} 43. Rxa6 {[%emt 0:00:02]} Rd7 {[%emt 0:02:39]} 44. h5 {[%emt 0:01:52]} Rf7 {[%emt 0:00:27]} 45. Kh4 {[%emt 0:02:53]} Rd7 {[%emt 0:00:54]} 46. g4 {[%emt 0:00:34]} Rf7 {[%emt 0:01:07]} 47. Rd6 {[%emt 0:00:45]} Re7 {[%emt 0:01:17]} 48. g5 {[%emt 0:00:44]} hxg5+ {[%emt 0:00:22]} 49. Kxg5 {[%emt 0:00:31]} Be2 {[%emt 0:01:00]} 50. h6 {[%emt 0:01:00]} gxh6+ {[%emt 0:00:30]} 51. Rxh6+ {[%emt 0:00:05]} Kg8 {[%emt 0:00:04]} 52. Kg6 {[%emt 0:00:13]} Bh5+ {[%emt 0:02:27]} 53. Rxh5 {[%emt 0:00:13]} Rg7+ {[%emt 0:00:08]} 54. Kf5 {[%emt 0:00:09]} 1-0

[Event "FISU WUMSCC Men 2024"]
[Site "Entebbe"]
[Date "2024.06.28"]
[Round "7.4"]
[White "Turcan, Richard"]
[Black "Walter, Szymon"]
[Result "1/2-1/2"]
[ECO "A28"]
[WhiteElo "2374"]
[BlackElo "2313"]
[Annotator "RC"]
[PlyCount "33"]
[EventDate "2024.06.24"]
[EventType "swiss"]
[EventCountry "UGA"]
[SourceTitle "playchess.com"]
[Source "ChessBase"]
[SourceQuality "1"]
[TimeControl "5400+30"]

1. c4 {[%emt 0:03:24]} Nf6 {[%emt 0:00:21]} 2. Nc3 {[%emt 0:00:09]} e5 {[%emt 0:00:20]} 3. Nf3 {[%emt 0:00:08]} Nc6 {[%emt 0:00:09]} 4. e3 {[%emt 0:00:32]} Bb4 {[%emt 0:01:26]} 5. Qc2 {[%emt 0:00:14]} O-O {[%emt 0:02:14]} 6. Nd5 {[%emt 0:01:04]} a5 {[%emt 0:02:34]} 7. Be2 {[%emt 0:05:15]} Re8 {[%emt 0:01:39]} 8. a3 {[%emt 0:02:43]} Bf8 {[%emt 0:00:24]} 9. d3 {[%emt 0:03:43]} d6 {[%emt 0:03:35]} 10. e4 {[%emt 0:03:18]} Nxd5 {[%emt 0:00:45]} 11. cxd5 {[%emt 0:00:15]} Nb8 {[%emt 0:03:33]} 12. O-O {[%emt 0:05:08]} c6 {[%emt 0:06:28]} 13. dxc6 {[%emt 0:05:24]} Nxc6 {[%emt 0:00:54]} 14. Be3 {[%emt 0:01:20]} d5 {[%emt 0:02:48]} 15. exd5 {[%emt 0:04:08]} Qxd5 {[%emt 0:00:08]} 16. Qc4 {[%emt 0:00:51]} Be6 {[%emt 0:11:23]} 17. Ng5 {[%emt 0:04:04]} 1/2-1/2

[Event "FISU WUMSCC Men 2024"]
[Site "Entebbe"]
[Date "2024.06.28"]
[Round "7.5"]
[White "Jakab, Bela"]
[Black "Horak, Martin"]
[Result "0-1"]
[ECO "C42"]
[WhiteElo "2390"]
[BlackElo "2333"]
[Annotator "RC"]
[PlyCount "84"]
[EventDate "2024.06.24"]
[EventType "swiss"]
[EventCountry "UGA"]
[SourceTitle "playchess.com"]
[Source "ChessBase"]
[SourceQuality "1"]
[TimeControl "5400+30"]

1. e4 {[%emt 0:00:42]} e5 {[%emt 0:02:40]} 2. Nf3 {[%emt 0:00:06]} Nf6 {[%emt 0:00:05]} 3. Nxe5 {[%emt 0:00:06]} d6 {[%emt 0:00:03]} 4. Nf3 {[%emt 0:00:09]} Nxe4 {[%emt 0:00:05]} 5. Nc3 {[%emt 0:01:06]} Nxc3 {[%emt 0:00:05]} 6. dxc3 {[%emt 0:00:05]} Be7 {[%emt 0:00:05]} 7. Be3 {[%emt 0:00:49]} Nc6 {[%emt 0:00:13]} 8. Bb5 {[%emt 0:00:26]} a6 {[%emt 0:04:34]} 9. Ba4 {[%emt 0:01:14]} O-O {[%emt 0:01:35]} 10. h3 {[%emt 0:00:27]} Na5 {[%emt 0:09:37]} 11. Bb3 {[%emt 0:04:26]} Nxb3 {[%emt 0:04:35]} 12. cxb3 {[%emt 0:01:49]} d5 {[%emt 0:02:34]} 13. Qd2 {[%emt 0:01:47]} Bf5 {[%emt 0:06:38]} 14. O-O {[%emt 0:01:25]} h6 {[%emt 0:06:13]} 15. b4 {[%emt 0:05:44]} c6 {[%emt 0:05:27]} 16. Bc5 {[%emt 0:04:33]} Be4 {[%emt 0:04:25]} 17. Bxe7 {[%emt 0:03:09]} Qxe7 {[%emt 0:00:05]} 18. Rfe1 {[%emt 0:00:44]} a5 {[%emt 0:02:13]} 19. Nd4 {[%emt 0:06:21]} Qf6 {[%emt 0:04:46]} 20. a3 {[%emt 0:07:08]} b6 {[%emt 0:03:42]} 21. Ne2 {[%emt 0:04:24]} Qg6 {[%emt 0:03:45]} 22. Ng3 {[%emt 0:04:26]} f5 {[%emt 0:03:51]} 23. Qf4 {[%emt 0:00:53]} c5 {[%emt 0:01:45]} 24. f3 {[%emt 0:04:03]} Bd3 {[%emt 0:02:01]} 25. Re3 {[%emt 0:02:04]} Bc4 {[%emt 0:01:37]} 26. bxa5 {[%emt 0:05:58]} bxa5 {[%emt 0:01:46]} 27. h4 {[%emt 0:01:42]} Rab8 {[%emt 0:01:57]} 28. Rae1 {[%emt 0:07:49]} Rb6 {[%emt 0:05:22]} 29. Re5 {[%emt 0:02:42]} Kh7 {[%emt 0:09:20]} 30. Re7 {[%emt 0:04:22]} a4 {[%emt 0:06:54]} 31. Qc7 {[%emt 0:09:03]} d4 {[%emt 0:03:31]} 32. h5 {[%emt 0:08:12]} Qf6 {[%emt 0:00:04]} 33. Nxf5 {[%emt 0:00:47]} Bf7 {[%emt 0:01:16]} 34. cxd4 {[%emt 0:00:55]} cxd4 {[%emt 0:00:48]} 35. Qc2 {[%emt 0:01:38]} Kh8 {[%emt 0:00:48]} 36. Qc5 {[%emt 0:02:10]} Rxb2 {[%emt 0:01:41]} 37. Nxd4 {[%emt 0:02:20]} Rd8 {[%emt 0:00:58]} 38. Nf5 {[%emt 0:01:57]} Rdd2 {[%emt 0:00:37]} 39. Ne3 {[%emt 0:00:23]} Qh4 {[%emt 0:00:56]} 40. Qc8+ {[%emt 0:00:26]} Bg8 {[%emt 0:00:12]} 41. Qg4 {[%emt 0:01:56]} Qxe1+ {[%emt 0:00:21]} 42. Kh2 {[%emt 0:00:06]} Rxg2+ {[%emt 0:00:15]} 0-1

[Event "FISU WUMSCC Men 2024"]
[Site "Entebbe"]
[Date "2024.06.28"]
[Round "7.6"]
[White "Kato, Richard"]
[Black "Szustakowski, Antoni"]
[Result "0-1"]
[ECO "E21"]
[WhiteElo "1908"]
[BlackElo "2362"]
[Annotator "RC"]
[PlyCount "64"]
[EventDate "2024.06.24"]
[EventType "swiss"]
[EventCountry "UGA"]
[SourceTitle "playchess.com"]
[Source "ChessBase"]
[SourceQuality "1"]
[TimeControl "5400+30"]

1. d4 {[%emt 0:00:35]} Nf6 {[%emt 0:00:08]} 2. c4 {[%emt 0:00:35]} e6 {[%emt 0:00:06]} 3. Nf3 {[%emt 0:00:15]} b6 {[%emt 0:00:26]} 4. Nc3 {[%emt 0:01:48]} Bb4 {[%emt 0:00:14]} 5. Qb3 {[%emt 0:01:55]} c5 {[%emt 0:02:02]} 6. Bg5 {[%emt 0:01:37]} h6 {[%emt 0:05:37]} 7. Bd2 {[%emt 0:01:39]} Bb7 {[%emt 0:04:36]} 8. e3 {[%emt 0:00:23]} Bxf3 {[%emt 0:11:23]} 9. gxf3 {[%emt 0:00:55]} O-O {[%emt 0:00:03]} 10. d5 {[%emt 0:06:05]} exd5 {[%emt 0:09:08]} 11. cxd5 {[%emt 0:00:24]} d6 {[%emt 0:00:04]} 12. Rg1 {[%emt 0:08:41]} Nbd7 {[%emt 0:01:44]} 13. f4 {[%emt 0:10:29]} a6 {[%emt 0:01:34]} 14. O-O-O {[%emt 0:14:41]} b5 {[%emt 0:01:06]} 15. f3 {[%emt 0:00:47]} Bxc3 {[%emt 0:03:45]} 16. Bxc3 {[%emt 0:00:22]} b4 {[%emt 0:00:12]} 17. Be1 {[%emt 0:02:46]} Nh5 {[%emt 0:07:57]} 18. Rd2 {[%emt 0:03:32]} Nb6 {[%emt 0:06:28]} 19. Rdg2 {[%emt 0:27:23]} a5 {[%emt 0:02:36]} 20. Qd3 {[%emt 0:01:36]} Qf6 {[%emt 0:19:13]} 21. Rd2 a4 {[%emt 0:01:56]} 22. Rg4 {[%emt 0:10:37]} c4 {[%emt 0:01:43]} 23. Qd4 {[%emt 0:00:23]} b3 {[%emt 0:07:00]} 24. axb3 {[%emt 0:03:37]} axb3 {[%emt 0:00:05]} 25. Kd1 {[%emt 0:00:06]} c3 {[%emt 0:03:04]} 26. bxc3 {[%emt 0:01:11]} Ra1+ {[%emt 0:00:04]} 27. Ke2 {[%emt 0:00:18]} Qxd4 {[%emt 0:00:05]} 28. cxd4 {[%emt 0:00:16]} Nc4 {[%emt 0:00:13]} 29. Kf2 {[%emt 0:01:18]} Nxd2 {[%emt 0:00:06]} 30. Bxd2 {[%emt 0:00:07]} Rxf1+ 31. Kxf1 {[%emt 0:00:12]} b2 {[%emt 0:00:17]} 32. Ke2 {[%emt 0:01:24]} b1=Q {[%emt 0:00:06]} 0-1

[Event "FISU WUMSCC Men 2024"]
[Site "Entebbe"]
[Date "2024.06.28"]
[Round "7.7"]
[White "Thilakarathne, G M H"]
[Black "Mthembu, Lovers"]
[Result "1-0"]
[ECO "C93"]
[WhiteElo "2356"]
[BlackElo "1876"]
[Annotator "RC"]
[PlyCount "79"]
[EventDate "2024.06.24"]
[EventType "swiss"]
[EventCountry "UGA"]
[SourceTitle "playchess.com"]
[Source "ChessBase"]
[SourceQuality "1"]
[TimeControl "5400+30"]

1. e4 {[%emt 0:03:24]} e5 {[%emt 0:00:06]} 2. Nf3 {[%emt 0:00:04]} Nc6 {[%emt 0:00:07]} 3. Bb5 {[%emt 0:00:03]} a6 {[%emt 0:00:10]} 4. Ba4 {[%emt 0:00:05]} d6 {[%emt 0:00:07]} 5. O-O {[%emt 0:02:13]} Nf6 {[%emt 0:00:08]} 6. Re1 {[%emt 0:01:43]} Be7 {[%emt 0:00:25]} 7. c3 {[%emt 0:03:16]} O-O {[%emt 0:02:03]} 8. h3 {[%emt 0:00:31]} b5 {[%emt 0:05:22]} 9. Bb3 {[%emt 0:02:55]} Bb7 {[%emt 0:00:27]} 10. d4 {[%emt 0:00:13]} h6 {[%emt 0:00:20]} 11. Nbd2 {[%emt 0:00:27]} Re8 {[%emt 0:00:45]} 12. Nf1 {[%emt 0:01:03]} Bf8 {[%emt 0:06:15]} 13. Ng3 {[%emt 0:00:28]} exd4 {[%emt 0:03:57]} 14. cxd4 {[%emt 0:00:16]} d5 {[%emt 0:01:26]} 15. e5 {[%emt 0:01:59]} Ne4 {[%emt 0:02:05]} 16. Bc2 {[%emt 0:15:31]} Nxg3 {[%emt 0:10:00]} 17. fxg3 {[%emt 0:00:07]} Qd7 {[%emt 0:00:14]} 18. a3 {[%emt 0:01:48]} b4 {[%emt 0:09:50]} 19. Nh2 {[%emt 0:25:40]} b3 {[%emt 0:25:53]} 20. Bxb3 {[%emt 0:01:33]} a5 {[%emt 0:00:41]} 21. Ba4 {[%emt 0:09:15]} Ba6 {[%emt 0:05:01]} 22. Ng4 {[%emt 0:01:29]} Re6 {[%emt 0:04:11]} 23. Bd2 {[%emt 0:08:01]} Rb8 {[%emt 0:00:43]} 24. Bc3 {[%emt 0:00:46]} Qd8 {[%emt 0:03:53]} 25. Qd2 {[%emt 0:04:25]} Bc4 {[%emt 0:03:50]} 26. Bxc6 Rxc6 {[%emt 0:00:13]} 27. Bxa5 {[%emt 0:01:44]} Rb3 {[%emt 0:01:18]} 28. Re3 {[%emt 0:01:39]} h5 {[%emt 0:03:58]} 29. Rc1 {[%emt 0:05:11]} Rb5 {[%emt 0:04:43]} 30. Nf2 {[%emt 0:00:20]} Ra6 {[%emt 0:00:59]} 31. Bc3 Rb3 {[%emt 0:01:37]} 32. Rce1 {[%emt 0:01:36]} Qg5 {[%emt 0:01:05]} 33. h4 {[%emt 0:01:36]} Qg6 {[%emt 0:00:55]} 34. Nh3 {[%emt 0:00:25]} Be7 {[%emt 0:01:42]} 35. Qd1 {[%emt 0:01:32]} Qf5 {[%emt 0:01:06]} 36. Nf4 {[%emt 0:02:11]} Bxh4 {[%emt 0:01:19]} 37. Qxh5 {[%emt 0:02:50]} Qxh5 {[%emt 0:00:06]} 38. Nxh5 {[%emt 0:00:04]} Bg5 {[%emt 0:00:17]} 39. Nf4 {[%emt 0:00:07]} Rbb6 {[%emt 0:02:06]} 40. Bb4 {[%emt 0:00:39]} 1-0

[Event "FISU WUMSCC Men 2024"]
[Site "Entebbe"]
[Date "2024.06.28"]
[Round "7.8"]
[White "Alharthi, Ahmed Mohammed A"]
[Black "Almuntasir, mohamed khalifah"]
[Result "1-0"]
[ECO "A48"]
[WhiteElo "1951"]
[BlackElo "1724"]
[Annotator "NA RC"]
[PlyCount "55"]
[EventDate "2024.06.24"]
[EventType "swiss"]
[EventCountry "UGA"]
[SourceTitle "playchess.com"]
[Source "ChessBase"]
[SourceQuality "1"]
[TimeControl "5400+30"]

1. d4 {[%emt 0:06:09]} Nf6 {[%emt 0:00:23]} 2. Bf4 {[%emt 0:00:30]} d6 {[%emt 0:00:24]} 3. e3 {[%emt 0:01:38]} g6 {[%emt 0:00:07]} 4. h3 {[%emt 0:00:54]} Bg7 {[%emt 0:00:07]} 5. c3 {[%emt 0:00:39]} O-O {[%emt 0:00:15]} 6. Nf3 {[%emt 0:00:21]} c6 {[%emt 0:00:24]} 7. Be2 {[%emt 0:01:50]} Qb6 {[%emt 0:00:21]} 8. Qc1 {[%emt 0:01:20]} h6 {[%emt 0:05:19]} 9. O-O {[%emt 0:02:55]} Na6 {[%emt 0:00:38]} 10. a4 {[%emt 0:02:02]} c5 {[%emt 0:01:35]} 11. Nbd2 {[%emt 0:03:07]} Be6 {[%emt 0:04:16]} 12. Re1 {[%emt 0:07:57]} Rac8 {[%emt 0:02:04]} 13. Bd3 {[%emt 0:04:49]} Qa5 {[%emt 0:08:07]} 14. e4 {[%emt 0:04:02]} cxd4 {[%emt 0:20:12]} 15. Nxd4 {[%emt 0:06:19]} Bd7 {[%emt 0:00:14] [#]} 16. N2b3 {[%emt 0:01:31]} ({White should play} 16. Nc4 $1 {[%cal Rc4a5]} Qc7 17. e5 (17. Bxh6 Nc5 $16) 17... dxe5 18. Nxe5 (18. Bxe5 Qd8 $16)) 16... Qd8 {[%emt 0:03:09]} 17. Bxh6 {[%emt 0:01:31]} Nc5 $16 {[%emt 0:00:31]} (17... e5 $142) 18. Bc2 {[%emt 0:02:47]} Nxa4 {[%emt 0:00:45]} 19. Rxa4 {[%emt 0:13:30]} Bxa4 {[%emt 0:01:13]} 20. Bxg7 {[%emt 0:01:13]} Kxg7 {[%emt 0:00:11]} 21. Nf5+ {[%emt 0:01:23]} Kg8 {[%emt 0:01:03]} 22. Qh6 {[%emt 0:09:33]} Ne8 {[%emt 0:06:56]} 23. e5 {[%emt 0:04:49]} d5 {[%emt 0:08:43]} 24. Nbd4 {[%emt 0:04:24]} Bxc2 {[%emt 0:06:55]} 25. Ne6 {[%emt 0:00:26]} fxe6 {[%emt 0:00:18]} 26. Qxg6+ {[%emt 0:00:41]} Kh8 {[%emt 0:00:22]} 27. Qh6+ {[%emt 0:00:22]} Kg8 {[%emt 0:00:08]} 28. Re3 {[%emt 0:00:23]} 1-0